fUST/lending_fUST_20240910
["ID","MTS","AMOUNT","RATE_DAILY","PERIOD"]
[337659103,1725922260198,-4834.03,0.00025537,2]
[337659104,1725922260211,-500.0,0.00025537,2]
[337659105,1725922260220,-500.0,0.00025537,2]
[337659106,1725922260230,-761.52,0.00025537,2]
[337659107,1725922260240,-500.0,0.00025537,2]
[337659108,1725922260249,-500.0,0.00025537,2]
[337659109,1725922260258,-500.0,0.00025537,2]
[337659110,1725922260267,-715.14,0.00025537,2]
[337659111,1725922260277,-694.16,0.00025537,2]
[337659112,1725922260286,-585.1,0.00025537,2]
[337659113,1725922260295,-824.22,0.00025537,2]
[337659114,1725922260304,-684.39,0.00025537,2]
[337659115,1725922260314,-1304.66,0.00025537,2]
[337659116,1725922260323,-500.0,0.00025537,2]
[337659117,1725922260333,-724.54,0.00025537,2]
[337659118,1725922260342,-500.0,0.00025537,2]
[337659119,1725922260351,-1178.91,0.00025537,2]
[337659120,1725922260360,-655.58,0.00025537,2]
[337659121,1725922260371,-151.0,0.00025542,7]
[337659122,1725922260380,-532.579088,0.00025542,7]
[337659123,1725922260391,-532.579088,0.00025542,7]
[337659124,1725922260400,-151.0,0.00025542,7]
[337659125,1725922260411,-151.0,0.00025542,7]
[337659126,1725922260421,-12980.31842017,0.00025542,2]
[337659127,1725922260795,-972.0,0.00025542,2]
[337659128,1725922261112,-1791.89,0.0002476,2]
[337659129,1725922261134,-499.78027732,0.0002476,2]
[337659130,1725922261200,-918.69981349,0.0002476,2]
[337659131,1725922261212,-21850.58580794,0.0002476,2]
[337659132,1725922261223,-4415.54016756,0.0002476,2]
[337659133,1725922273965,194.78,0.0002539,120]
[337659135,1725922416155,10000.0,0.00028,120]
[337659136,1725922431813,8840.61,0.00028,120]
[337659144,1725922800947,151.68,0.00023958,3]
[337659145,1725922811983,834.25,0.00023958,3]
[337659146,1725922822825,417.12,0.00023813,3]
[337659147,1725922833645,208.56,0.00023813,3]
[337659148,1725922844428,625.72,0.00023813,3]
[337659150,1725922960414,7000.0,0.00021082,2]
[337659151,1725922965816,808.7247511,0.00020889,2]
[337659152,1725922968693,182.29834,0.00019844,2]
[337659153,1725922969946,227.1291972,0.00020889,2]
[337659154,1725922985273,1318.6492554,0.00020867,2]
[337659155,1725922987974,3000.0,0.00020867,2]
[337659156,1725922988595,537.2,0.00023811,3]
[337659157,1725922999855,268.6,0.00023811,3]
[337659158,1725923002723,21956.87,0.00023811,3]
[337659159,1725923016925,2127.94889,0.00020867,2]
[337659160,1725923040238,201.6142409,0.00020867,2]
[337659161,1725923074929,645.447546,0.00020867,2]
[337659162,1725923137015,1488.1877794,0.00020572,2]
[337659163,1725923162687,8079.0168728,0.0002,2]
[337659165,1725923240587,-250.0,0.0002037,2]
[337659166,1725923291329,25000.0,0.00022729,3]
[337659180,1725923381996,-24900.0,0.0002037,2]
[337659191,1725923432310,-1541.21344508,0.00020572,2]
[337659202,1725923433863,-1253.88685232,0.00020572,2]
[337659204,1725923438244,-1203.52511,0.00021034,2]
[337659205,1725923438254,-300.0,0.00021081,2]
[337659206,1725923438265,-578.69435446,0.00021082,2]
[337659207,1725923438277,-15770.05582624,0.00021082,2]
[337659208,1725923438286,-97.43198224,0.00021581,2]
[337659209,1725923438299,-72.17255776,0.00021581,2]
[337659210,1725923438309,-2627.2986538,0.00021888,2]
[337659211,1725923438321,-576.19436291,0.00021917,2]
[337659212,1725923438331,-500.0,0.00021917,2]
[337659213,1725923438342,-8454.39,0.00021917,2]
[337659214,1725923438354,-1081.64,0.00021917,2]
[337659215,1725923438366,-1371.6,0.00021917,2]
[337659216,1725923438376,-853.7,0.00021917,2]
[337659217,1725923438544,-2919.35,0.00021917,2]
[337659218,1725923438560,-500.0,0.00021917,2]
[337659219,1725923438570,-6443.6,0.00021917,2]
[337659220,1725923438579,-500.0,0.00021917,2]
[337659221,1725923438587,-1204.77,0.00021917,2]
[337659222,1725923438596,-1420.08,0.00021917,2]
[337659223,1725923438606,-2184.79,0.00021917,2]
[337659224,1725923438615,-1445.75,0.00021917,2]
[337659225,1725923438624,-1207.63,0.00021917,2]
[337659226,1725923438633,-500.0,0.00021917,2]
[337659227,1725923438642,-441.23004909,0.00021917,2]
[337659228,1725923438651,-1060.54,0.00021917,2]
[337659229,1725923438660,-166.666666,0.00021918,2]
[337659230,1725923438676,-251.0,0.0002193,2]
[337659231,1725923438685,-250.0,0.00022125,2]
[337659232,1725923438694,-604.37,0.00022181,3]
[337659233,1725923438704,-250.0,0.00022186,2]
[337659234,1725923438713,-500.0,0.00022191,2]
[337659235,1725923438722,-8454.39,0.00022191,2]
[337659236,1725923438731,-1081.64,0.00022191,2]
[337659237,1725923438739,-1371.6,0.00022191,2]
[337659238,1725923438748,-853.7,0.00022191,2]
[337659239,1725923438758,-2919.35,0.00022191,2]
[337659240,1725923438766,-500.0,0.00022191,2]
[337659241,1725923438775,-6443.6,0.00022191,2]
[337659242,1725923438784,-500.0,0.00022191,2]
[337659243,1725923438793,-1204.77,0.00022191,2]
[337659244,1725923438802,-1420.08,0.00022191,2]
[337659245,1725923438812,-2184.79,0.00022191,2]
[337659246,1725923438822,-1445.75,0.00022191,2]
[337659247,1725923438831,-1207.63,0.00022191,2]
[337659248,1725923438840,-1060.54,0.00022191,2]
[337659249,1725923438850,-250.0,0.00022246,2]
[337659250,1725923438859,-250.0,0.00022307,2]
[337659251,1725923438869,-250.0,0.00022368,2]
[337659252,1725923438878,-250.0,0.00022429,2]
[337659253,1725923438887,-402.9,0.00022455,3]
[337659254,1725923438896,-201.45,0.00022455,3]
[337659255,1725923438906,-500.0,0.00022465,2]
[337659256,1725923438918,-8454.39,0.00022465,2]
[337659257,1725923438927,-1081.64,0.00022465,2]
[337659258,1725923438938,-1371.6,0.00022465,2]
[337659259,1725923438948,-853.7,0.00022465,2]
[337659260,1725923438959,-2919.35,0.00022465,2]
[337659261,1725923438969,-500.0,0.00022465,2]
[337659262,1725923438978,-6443.6,0.00022465,2]
[337659263,1725923438987,-500.0,0.00022465,2]
[337659264,1725923438996,-1204.77,0.00022465,2]
[337659265,1725923439005,-1420.08,0.00022465,2]
[337659266,1725923439015,-2184.79,0.00022465,2]
[337659267,1725923439025,-1445.75,0.00022465,2]
[337659268,1725923439039,-1207.63,0.00022465,2]
[337659269,1725923439048,-1060.54,0.00022465,2]
[337659270,1725923439057,-250.0,0.00022489,2]
[337659271,1725923439066,-250.0,0.0002255,2]
[337659272,1725923439077,-166.666666,0.00022559,2]
[337659273,1725923439086,-250.0,0.00022611,2]
[337659274,1725923439095,-5903.58005042,0.00022628,2]
[337659275,1725923439105,-250.0,0.00022671,2]
[337659276,1725923439115,-500.812646,0.00022704,2]
[337659277,1725923439125,-500.0,0.00022704,2]
[337659278,1725923439135,-500.0,0.00022704,2]
[337659279,1725923439145,-626.64513124,0.00022704,2]
[337659280,1725923439154,-500.0,0.00022704,2]
[337659281,1725923439164,-1006.49622718,0.00022704,2]
[337659282,1725923439173,-500.0,0.00022704,2]
[337659283,1725923439182,-543.74814108,0.00022704,2]
[337659284,1725923439192,-500.0,0.00022704,2]
[337659285,1725923439201,-1006.49622718,0.00022704,2]
[337659286,1725923439210,-457.72527562,0.00022704,2]
[337659287,1725923439221,-500.0,0.00022704,2]
[337659288,1725923439232,-500.0,0.00022704,2]
[337659289,1725923439242,-1006.49622718,0.00022704,2]
[337659290,1725923439252,-500.0,0.00022704,2]
[337659291,1725923439261,-1006.49622718,0.00022704,2]
[337659292,1725923439270,-500.0,0.00022704,2]
[337659293,1725923439279,-1006.49622718,0.00022704,2]
[337659294,1725923439288,-500.0,0.00022704,2]
[337659295,1725923439298,-1006.49622718,0.00022704,2]
[337659296,1725923439307,-500.0,0.00022704,2]
[337659297,1725923439318,-1006.49622718,0.00022704,2]
[337659298,1725923439328,-500.0,0.00022704,2]
[337659299,1725923439337,-1006.49622718,0.00022704,2]
[337659300,1725923439346,-500.0,0.00022704,2]
[337659301,1725923439357,-1006.49622718,0.00022704,2]
[337659302,1725923439366,-500.0,0.00022704,2]
[337659303,1725923439375,-1006.49622718,0.00022704,2]
[337659304,1725923439384,-183.38235901,0.00022704,2]
[337659305,1725923439393,-500.0,0.00022704,2]
[337659306,1725923439402,-1006.49622718,0.00022704,2]
[337659307,1725923439413,-1006.49622718,0.00022704,2]
[337659308,1725923439422,-500.0,0.00022704,2]
[337659309,1725923439432,-1006.49622718,0.00022704,2]
[337659310,1725923439442,-500.0,0.00022704,2]
[337659311,1725923439451,-1006.49622718,0.00022704,2]
[337659312,1725923439461,-500.0,0.00022704,2]
[337659313,1725923439470,-1006.49622718,0.00022704,2]
[337659314,1725923439479,-1006.49622718,0.00022704,2]
[337659315,1725923439490,-1006.49622718,0.00022704,2]
[337659316,1725923439499,-1006.49622718,0.00022704,2]
[337659317,1725923439509,-1006.49622718,0.00022704,2]
[337659318,1725923439518,-1006.49622718,0.00022704,2]
[337659319,1725923439528,-1006.49622718,0.00022704,2]
[337659320,1725923439538,-1006.49622718,0.00022704,2]
[337659321,1725923439548,-1006.49622718,0.00022704,2]
[337659322,1725923439559,-1006.49622718,0.00022704,2]
[337659323,1725923439568,-1006.49622718,0.00022704,2]
[337659324,1725923439578,-1006.49622718,0.00022704,2]
[337659325,1725923439587,-1006.49622718,0.00022704,2]
[337659326,1725923439596,-1006.49622718,0.00022704,2]
[337659327,1725923439607,-1006.49622718,0.00022704,2]
[337659328,1725923439616,-1006.49622718,0.00022704,2]
[337659329,1725923439627,-1006.49622718,0.00022704,2]
[337659330,1725923439636,-1006.49622718,0.00022704,2]
[337659331,1725923439645,-1006.49622718,0.00022704,2]
[337659332,1725923439655,-1006.49622718,0.00022704,2]
[337659333,1725923439667,-1006.49622718,0.00022704,2]
[337659334,1725923439678,-1006.49622718,0.00022704,2]
[337659335,1725923439687,-1006.49622718,0.00022704,2]
[337659336,1725923439699,-1006.49622718,0.00022704,2]
[337659337,1725923439708,-1006.49622718,0.00022704,2]
[337659338,1725923439717,-5903.58005038,0.00022705,2]
[337659339,1725923439727,-349.46415898,0.00022728,2]
[337659340,1725923439736,-500.0,0.00022728,2]
[337659342,1725923439746,-500.0,0.00022728,2]
[337659343,1725923439757,-500.0,0.00022728,2]
[337659344,1725923439766,-500.0,0.00022728,2]
[337659345,1725923439775,-251.67827823,0.00022728,2]
[337659346,1725923439785,-493.99944763,0.00022728,2]
[337659347,1725923439795,-500.0,0.00022728,2]
[337659348,1725923439804,-500.0,0.00022728,2]
[337659350,1725923439813,-500.0,0.00022728,2]
[337659351,1725923439823,-500.0,0.00022728,2]
[337659352,1725923439834,-154882.611134,0.00022729,3]
[337659353,1725923439844,-250.0,0.00022732,2]
[337659354,1725923439853,-500.0,0.00022739,2]
[337659355,1725923439863,-8454.39,0.00022739,2]
[337659356,1725923439872,-1081.64,0.00022739,2]
[337659357,1725923439882,-1371.6,0.00022739,2]
[337659358,1725923439891,-853.7,0.00022739,2]
[337659360,1725923439906,-2919.35,0.00022739,2]
[337659361,1725923439918,-500.0,0.00022739,2]
[337659362,1725923439927,-6443.6,0.00022739,2]
[337659363,1725923439937,-500.0,0.00022739,2]
[337659364,1725923439946,-1204.77,0.00022739,2]
[337659365,1725923439956,-1420.08,0.00022739,2]
[337659366,1725923439965,-2184.79,0.00022739,2]
[337659367,1725923439974,-1445.75,0.00022739,2]
[337659369,1725923439984,-1207.63,0.00022739,2]
[337659371,1725923439993,-1060.54,0.00022739,2]
[337659373,1725923440002,-4601.91,0.00022768,2]
[337659374,1725923440011,-4297.15,0.00022768,2]
[337659376,1725923440023,-1569.13,0.00022768,2]
[337659377,1725923440037,-500.0,0.00022768,2]
[337659379,1725923440047,-1667.04,0.00022768,2]
[337659381,1725923440057,-500.0,0.00022768,2]
[337659382,1725923440066,-57302.22,0.00022768,2]
[337659383,1725923440075,-1965.41,0.00022768,2]
[337659384,1725923440084,-1948.39,0.00022768,2]
[337659386,1725923440094,-5903.58005038,0.00022782,2]
[337659387,1725923440104,-250.0,0.00022793,2]
[337659389,1725923440115,-250.0,0.00022853,2]
[337659390,1725923440126,-5903.58005038,0.00022858,2]
[337659391,1725923440136,-250.0,0.00022914,2]
[337659392,1725923440146,-5903.58005038,0.00022935,2]
[337659393,1725923440155,-1155.22744307,0.00022935,2]
[337659394,1725923440165,-250.0,0.00022975,2]
[337659395,1725923440174,-500.0,0.00023013,2]
[337659396,1725923440183,-8454.39,0.00023013,2]
[337659397,1725923440192,-1081.64,0.00023013,2]
[337659398,1725923440202,-1371.6,0.00023013,2]
[337659399,1725923440211,-853.7,0.00023013,2]
[337659400,1725923440221,-2919.35,0.00023013,2]
[337659401,1725923440231,-500.0,0.00023013,2]
[337659402,1725923440240,-6443.6,0.00023013,2]
[337659403,1725923440250,-500.0,0.00023013,2]
[337659404,1725923440259,-1204.77,0.00023013,2]
[337659405,1725923440268,-1420.08,0.00023013,2]
[337659406,1725923440278,-2184.79,0.00023013,2]
[337659407,1725923440287,-1445.75,0.00023013,2]
[337659408,1725923440297,-1207.63,0.00023013,2]
[337659409,1725923440306,-1060.54,0.00023013,2]
[337659410,1725923440316,-179882.611134,0.00023032,3]
[337659411,1725923440325,-250.0,0.00023035,2]
[337659412,1725923440335,-4601.91,0.00023042,2]
[337659413,1725923440344,-4297.15,0.00023042,2]
[337659414,1725923440353,-1569.13,0.00023042,2]
[337659415,1725923440362,-500.0,0.00023042,2]
[337659416,1725923440372,-1667.04,0.00023042,2]
[337659417,1725923440381,-500.0,0.00023042,2]
[337659418,1725923440390,-57302.22,0.00023042,2]
[337659419,1725923440400,-1965.41,0.00023042,2]
[337659420,1725923440409,-1948.39,0.00023042,2]
[337659421,1725923440421,-250.0,0.00023096,2]
[337659422,1725923440430,-250.0,0.00023157,2]
[337659423,1725923440440,-420.0,0.00023189,2]
[337659424,1725923440449,-166.666666,0.000232,2]
[337659425,1725923440459,-250.0,0.00023217,2]
[337659426,1725923440468,-250.0,0.00023278,2]
[337659427,1725923440477,-500.0,0.00023287,2]
[337659428,1725923440487,-8454.39,0.00023287,2]
[337659429,1725923440497,-1081.64,0.00023287,2]
[337659430,1725923440507,-1371.6,0.00023287,2]
[337659431,1725923440516,-853.7,0.00023287,2]
[337659432,1725923440526,-2919.35,0.00023287,2]
[337659433,1725923440535,-500.0,0.00023287,2]
[337659434,1725923440544,-6443.6,0.00023287,2]
[337659435,1725923440553,-500.0,0.00023287,2]
[337659436,1725923440562,-1204.77,0.00023287,2]
[337659437,1725923440571,-1420.08,0.00023287,2]
[337659438,1725923440580,-2184.79,0.00023287,2]
[337659439,1725923440589,-1445.75,0.00023287,2]
[337659440,1725923440598,-1207.63,0.00023287,2]
[337659441,1725923440607,-1060.54,0.00023287,2]
[337659442,1725923440616,-5448.08350194,0.00023299,2]
[337659443,1725923440626,-115129.2176755,0.00023306,3]
[337659444,1725923440640,-64753.3934585,0.00023306,3]
[337659445,1725923440649,-4601.91,0.00023316,2]
[337659446,1725923440658,-4297.15,0.00023316,2]
[337659447,1725923440670,-1569.13,0.00023316,2]
[337659448,1725923440680,-500.0,0.00023316,2]
[337659449,1725923440689,-1667.04,0.00023316,2]
[337659450,1725923440698,-500.0,0.00023316,2]
[337659451,1725923440708,-57302.22,0.00023316,2]
[337659452,1725923440719,-1965.41,0.00023316,2]
[337659453,1725923440729,-1948.39,0.00023316,2]
[337659454,1725923440738,-5735.9,0.00023474,2]
[337659455,1725923440750,-500.0,0.00023561,2]
[337659456,1725923440760,-8454.39,0.00023561,2]
[337659457,1725923440770,-1081.64,0.00023561,2]
[337659458,1725923440780,-1371.6,0.00023561,2]
[337659459,1725923440789,-853.7,0.00023561,2]
[337659460,1725923440800,-2919.35,0.00023561,2]
[337659461,1725923440811,-500.0,0.00023561,2]
[337659462,1725923440820,-6443.6,0.00023561,2]
[337659463,1725923440830,-500.0,0.00023561,2]
[337659464,1725923440840,-1204.77,0.00023561,2]
[337659465,1725923440850,-1420.08,0.00023561,2]
[337659466,1725923440859,-2184.79,0.00023561,2]
[337659467,1725923440868,-1445.75,0.00023561,2]
[337659468,1725923440877,-1207.63,0.00023561,2]
[337659469,1725923440887,-1060.54,0.00023561,2]
[337659470,1725923440896,-4601.91,0.0002359,2]
[337659471,1725923440905,-4297.15,0.0002359,2]
[337659472,1725923440915,-1569.13,0.0002359,2]
[337659473,1725923440924,-500.0,0.0002359,2]
[337659474,1725923440933,-1667.04,0.0002359,2]
[337659475,1725923440943,-500.0,0.0002359,2]
[337659476,1725923440953,-57302.22,0.0002359,2]
[337659477,1725923440962,-1965.41,0.0002359,2]
[337659478,1725923440972,-1948.39,0.0002359,2]
[337659479,1725923440981,-1155.22744306,0.00023687,2]
[337659480,1725923440991,-500.0,0.0002369,2]
[337659481,1725923441001,-500.0,0.0002369,2]
[337659482,1725923441010,-500.0,0.0002369,2]
[337659483,1725923441020,-500.0,0.0002369,2]
[337659484,1725923441029,-500.0,0.0002369,2]
[337659485,1725923441043,-500.0,0.0002369,2]
[337659486,1725923441053,-500.0,0.0002369,2]
[337659487,1725923441063,-500.0,0.0002369,2]
[337659488,1725923441072,-500.0,0.0002369,2]
[337659489,1725923441083,-500.0,0.0002369,2]
[337659490,1725923441092,-500.0,0.0002369,2]
[337659491,1725923441102,-500.0,0.0002369,2]
[337659492,1725923441113,-500.0,0.0002369,2]
[337659493,1725923441122,-501.59858043,0.0002369,2]
[337659494,1725923441132,-500.0,0.0002369,2]
[337659495,1725923441142,-500.0,0.0002369,2]
[337659496,1725923441291,-500.0,0.0002369,2]
[337659497,1725923441301,-500.0,0.0002369,2]
[337659498,1725923441311,-500.0,0.0002369,2]
[337659499,1725923441321,-500.0,0.0002369,2]
[337659500,1725923441330,-597.7,0.0002369,2]
[337659501,1725923441340,-500.0,0.0002369,2]
[337659502,1725923441350,-500.0,0.0002369,2]
[337659503,1725923441359,-741.29,0.0002369,2]
[337659504,1725923441369,-500.0,0.0002369,2]
[337659505,1725923441379,-500.0,0.0002369,2]
[337659506,1725923441389,-500.0,0.0002369,2]
[337659507,1725923441399,-500.0,0.0002369,2]
[337659508,1725923441409,-500.0,0.0002369,2]
[337659509,1725923441419,-500.0,0.0002369,2]
[337659510,1725923441428,-554.06,0.0002369,2]
[337659511,1725923441438,-500.0,0.0002369,2]
[337659512,1725923441447,-500.0,0.0002369,2]
[337659513,1725923441458,-358.58173079,0.0002369,2]
[337659514,1725923441469,-500.0,0.0002369,2]
[337659515,1725923441480,-500.0,0.0002369,2]
[337659516,1725923441491,-500.0,0.0002369,2]
[337659517,1725923441501,-2421.47,0.0002369,2]
[337659518,1725923441512,-500.0,0.0002369,2]
[337659519,1725923441521,-816.47,0.0002369,2]
[337659520,1725923441532,-4452.8,0.0002369,2]
[337659521,1725923441542,-500.0,0.0002369,2]
[337659522,1725923441552,-500.0,0.0002369,2]
[337659523,1725923441562,-500.0,0.0002369,2]
[337659524,1725923441573,-500.0,0.0002369,2]
[337659525,1725923441583,-500.0,0.0002369,2]
[337659526,1725923441592,-3599.78,0.0002369,2]
[337659527,1725923441602,-500.0,0.0002369,2]
[337659528,1725923441611,-500.0,0.0002369,2]
[337659529,1725923441623,-500.0,0.0002369,2]
[337659530,1725923441634,-500.0,0.0002369,2]
[337659531,1725923441645,-4691.32,0.0002369,2]
[337659532,1725923441655,-2223.2,0.0002369,2]
[337659533,1725923441665,-500.0,0.0002369,2]
[337659534,1725923441675,-1098.21,0.0002369,2]
[337659535,1725923441684,-480.270145,0.0002369,2]
[337659536,1725923441693,-500.0,0.0002369,2]
[337659537,1725923441703,-3643.55,0.0002369,2]
[337659538,1725923441713,-1124.43,0.0002369,2]
[337659539,1725923441722,-778.89,0.0002369,2]
[337659540,1725923441731,-688.65,0.0002369,2]
[337659541,1725923441741,-637.43,0.0002369,2]
[337659542,1725923441750,-501.99373175,0.0002369,2]
[337659543,1725923441759,-500.0,0.0002369,2]
[337659544,1725923441768,-500.0,0.0002369,2]
[337659545,1725923441778,-500.0,0.0002369,2]
[337659546,1725923441789,-624.39502448,0.0002369,2]
[337659547,1725923441800,-298.74964935,0.0002369,2]
[337659548,1725923441810,-500.0,0.0002369,2]
[337659549,1725923441821,-1328.08,0.0002369,2]
[337659550,1725923441832,-691.79,0.0002369,2]
[337659551,1725923441845,-315.4854012,0.0002369,2]
[337659552,1725923441856,-500.0,0.0002369,2]
[337659553,1725923441866,-521.81453931,0.0002369,2]
[337659554,1725923441876,-500.0,0.0002369,2]
[337659555,1725923441886,-500.0,0.0002369,2]
[337659556,1725923441896,-844.48,0.0002369,2]
[337659557,1725923441905,-151.0,0.00023811,7]
[337659558,1725923441916,-151.0,0.00023811,7]
[337659559,1725923441925,-151.0,0.00023811,7]
[337659560,1725923441936,-5448.08350194,0.00023811,2]
[337659561,1725923441947,-151.0,0.00023811,7]
[337659562,1725923441958,-151.0,0.00023811,7]
[337659563,1725923441968,-500.0,0.00023821,2]
[337659564,1725923441978,-500.0,0.00023821,2]
[337659565,1725923441987,-500.0,0.00023821,2]
[337659566,1725923441996,-500.0,0.00023821,2]
[337659567,1725923442006,-500.0,0.00023821,2]
[337659568,1725923442016,-628.78,0.00023821,2]
[337659569,1725923442026,-500.0,0.00023821,2]
[337659570,1725923442041,-500.0,0.00023821,2]
[337659571,1725923442052,-502.27210797,0.00023821,2]
[337659572,1725923442063,-500.0,0.00023821,2]
[337659573,1725923442073,-500.0,0.00023821,2]
[337659574,1725923442083,-847.94,0.00023821,2]
[337659575,1725923442092,-520.43,0.00023821,2]
[337659576,1725923442102,-500.0,0.00023821,2]
[337659577,1725923442113,-500.0,0.00023821,2]
[337659578,1725923442125,-500.0,0.00023821,2]
[337659579,1725923442135,-500.0,0.00023821,2]
[337659580,1725923442144,-500.0,0.00023821,2]
[337659581,1725923442154,-500.0,0.00023821,2]
[337659582,1725923442164,-500.0,0.00023821,2]
[337659583,1725923442173,-414.39717218,0.00023821,2]
[337659584,1725923442183,-512.76368327,0.00023821,2]
[337659585,1725923442192,-500.0,0.00023821,2]
[337659586,1725923442203,-500.0,0.00023821,2]
[337659587,1725923442214,-274.81869451,0.00023821,2]
[337659588,1725923442223,-1330.33,0.00023821,2]
[337659589,1725923442233,-500.0,0.00023821,2]
[337659590,1725923442242,-500.0,0.00023821,2]
[337659591,1725923442252,-1481.26,0.00023821,2]
[337659592,1725923442262,-277.11,0.00023821,2]
[337659593,1725923442272,-500.0,0.00023821,2]
[337659594,1725923442282,-500.0,0.00023821,2]
[337659595,1725923442292,-500.0,0.00023821,2]
[337659596,1725923442301,-500.0,0.00023821,2]
[337659597,1725923442312,-461.4116296,0.00023821,2]
[337659598,1725923442322,-663.74,0.00023821,2]
[337659599,1725923442332,-500.0,0.00023821,2]
[337659600,1725923442343,-525.69215942,0.00023821,2]
[337659601,1725923442352,-500.0,0.00023821,2]
[337659602,1725923442362,-500.0,0.00023821,2]
[337659603,1725923442372,-500.0,0.00023821,2]
[337659604,1725923442381,-573.52,0.00023821,2]
[337659605,1725923442392,-500.0,0.00023821,2]
[337659606,1725923442402,-500.0,0.00023821,2]
[337659607,1725923442412,-500.0,0.00023821,2]
[337659608,1725923442424,-509.6,0.00023821,2]
[337659609,1725923442434,-500.0,0.00023821,2]
[337659610,1725923442444,-507.16773653,0.00023821,2]
[337659611,1725923442453,-500.0,0.00023821,2]
[337659612,1725923442463,-500.0,0.00023821,2]
[337659613,1725923442473,-500.0,0.00023821,2]
[337659614,1725923442483,-664.74,0.00023821,2]
[337659615,1725923442492,-1546.57,0.00023821,2]
[337659616,1725923442503,-500.0,0.00023821,2]
[337659617,1725923442512,-500.0,0.00023821,2]
[337659618,1725923442522,-500.0,0.00023821,2]
[337659619,1725923442531,-500.0,0.00023821,2]
[337659620,1725923442541,-500.0,0.00023821,2]
[337659621,1725923442551,-500.0,0.00023821,2]
[337659622,1725923442561,-1482.53,0.00023821,2]
[337659623,1725923442570,-500.0,0.00023821,2]
[337659624,1725923442580,-500.0,0.00023821,2]
[337659625,1725923442589,-500.0,0.00023821,2]
[337659626,1725923442599,-253.02742132,0.00023821,2]
[337659627,1725923442608,-500.0,0.00023821,2]
[337659628,1725923442617,-500.0,0.00023821,2]
[337659629,1725923442626,-502.17225633,0.00023821,2]
[337659630,1725923442636,-600.01,0.00023821,2]
[337659631,1725923442645,-500.0,0.00023821,2]
[337659632,1725923442654,-500.0,0.00023821,2]
[337659633,1725923442665,-691.05,0.00023821,2]
[337659634,1725923442675,-500.0,0.00023821,2]
[337659635,1725923442685,-500.0,0.00023821,2]
[337659636,1725923442695,-500.0,0.00023821,2]
[337659637,1725923442706,-500.0,0.00023821,2]
[337659638,1725923442715,-1108.19,0.00023821,2]
[337659639,1725923442725,-500.0,0.00023821,2]
[337659640,1725923442735,-500.0,0.00023821,2]
[337659641,1725923442744,-500.0,0.00023821,2]
[337659642,1725923442755,-1416.87,0.00023821,2]
[337659643,1725923442764,-1049.7,0.00023821,2]
[337659644,1725923442773,-500.0,0.00023821,2]
[337659645,1725923442783,-502.35896847,0.00023821,2]
[337659647,1725923442794,-1244.52,0.00023821,2]
[337659649,1725923442805,-634.39,0.00023821,2]
[337659651,1725923442817,-500.0,0.00023821,2]
[337659652,1725923442827,-500.0,0.00023821,2]
[337659653,1725923442840,-1694.21,0.00023821,2]
[337659654,1725923442850,-212.72358062,0.00023821,2]
[337659655,1725923442859,-500.0,0.00023821,2]
[337659656,1725923442870,-500.0,0.00023821,2]
[337659657,1725923442879,-500.0,0.00023821,2]
[337659658,1725923442887,-499.33184194,0.00023821,2]
[337659659,1725923442897,-500.0,0.00023821,2]
[337659660,1725923442907,-821.38,0.00023821,2]